[Event "29th Paul Keres Memorial 2020"]
[Site "Tallinn"]
[Date "2020.01.11"]
[Round "4.1"]
[White "Kovalenko, Igor"]
[Black "Gareyev, Timur"]
[Result "1/2-1/2"]
[ECO "A45"]
[WhiteElo "2640"]
[BlackElo "2607"]
[Annotator "ChessBase"]
[PlyCount "148"]
[EventDate "2020.01.11"]
[EventType "swiss"]
[EventCountry "EST"]
[SourceTitle "playchess.com"]
[Source "ChessBase"]
[SourceQuality "1"]
[TimeControl "900+5"]

1. d4 {[%emt 0:00:00]} Nf6 {[%emt 0:00:01]} 2. Bg5 {[%emt 0:00:00]} c5 {[%emt 0:00:05]} 3. Bxf6 {[%emt 0:00:01]} exf6 {[%emt 0:00:01]} 4. c3 {[%emt 0:00:16]} Qb6 {[%emt 0:00:13]} 5. Qd2 {[%emt 0:00:02]} d5 {[%emt 0:00:29]} 6. e3 {[%emt 0:00:03]} Nc6 {[%emt 0:00:07]} 7. Be2 {[%emt 0:00:15]} Bf5 {[%emt 0:01:07]} 8. Nf3 {[%emt 0:00:11]} Rd8 {[%emt 0:00:38]} 9. O-O {[%emt 0:00:03]} Bd6 {[%emt 0:00:03]} 10. dxc5 {[%emt 0:00:29]} Qxc5 {[%emt 0:00:09]} 11. Nd4 {[%emt 0:00:07]} Be4 {[%emt 0:00:05]} 12. Qd1 {[%emt 0:00:28]} Bb8 {[%emt 0:00:21]} 13. Nd2 {[%emt 0:00:01]} O-O {[%emt 0:01:29]} 14. Qb3 {[%emt 0:00:20]} Na5 {[%emt 0:00:30]} 15. Qa4 {[%emt 0:00:22]} Qc7 {[%emt 0:00:19]} 16. g3 {[%emt 0:00:02]} Bg6 {[%emt 0:01:05]} 17. Rac1 {[%emt 0:00:10]} Rc8 {[%emt 0:01:54]} 18. Rfd1 {[%emt 0:00:19]} a6 {[%emt 0:00:08]} 19. h4 {[%emt 0:03:14]} h5 {[%emt 0:01:19]} 20. Bf3 {[%emt 0:00:16]} Rfd8 {[%emt 0:00:16]} 21. Ne2 {[%emt 0:00:11]} b5 {[%emt 0:00:07]} 22. Qa3 {[%emt 0:00:07]} Qb6 {[%emt 0:00:11]} 23. b4 {[%emt 0:00:16]} Nc6 {[%emt 0:00:29]} 24. Nf4 {[%emt 0:01:46]} Bxf4 {[%emt 0:00:33]} 25. exf4 {[%emt 0:00:01]} d4 {[%emt 0:00:16]} 26. c4 {[%emt 0:00:00]} bxc4 {[%emt 0:00:56]} 27. Rxc4 {[%emt 0:00:02]} Na7 {[%emt 0:00:11]} 28. Qb3 {[%emt 0:02:01]} Nb5 {[%emt 0:00:01]} 29. a4 {[%emt 0:00:52]} Nd6 {[%emt 0:00:37]} 30. Rcc1 {[%emt 0:00:17]} Rb8 {[%emt 0:00:16]} 31. Nc4 {[%emt 0:01:01]} Qxb4 {[%emt 0:00:12]} 32. Qxb4 {[%emt 0:00:01]} Rxb4 {[%emt 0:00:01]} 33. Rxd4 {[%emt 0:00:02]} Kh7 {[%emt 0:01:24]} 34. Rxd6 {[%emt 0:01:42]} Rxc4 {[%emt 0:00:06]} 35. Rxc4 {[%emt 0:00:00]} Rxd6 {[%emt 0:00:02]} 36. Rc5 {[%emt 0:00:02]} Bd3 {[%emt 0:01:14]} 37. Rxh5+ {[%emt 0:00:03]} Kg8 {[%emt 0:00:02]} 38. Rc5 {[%emt 0:00:15]} Rd4 {[%emt 0:00:12]} 39. Bc6 {[%emt 0:00:04]} g6 {[%emt 0:00:21]} 40. Kg2 {[%emt 0:00:34]} f5 {[%emt 0:00:00]} 41. a5 {[%emt 0:00:17]} Be2 {[%emt 0:00:07]} 42. Rc2 {[%emt 0:00:56]} Bd3 {[%emt 0:00:17]} 43. Rc5 {[%emt 0:00:24]} Be2 {[%emt 0:00:09]} 44. Rd5 {[%emt 0:00:01]} Rc4 {[%emt 0:00:13]} 45. Rd2 {[%emt 0:00:45]} Rxc6 {[%emt 0:00:15]} 46. Rxe2 {[%emt 0:00:01]} Kg7 {[%emt 0:00:04]} 47. Re5 {[%emt 0:00:02]} Rc2 {[%emt 0:00:07]} 48. h5 {[%emt 0:00:01]} Ra2 {[%emt 0:00:05]} 49. hxg6 {[%emt 0:00:03]} fxg6 {[%emt 0:00:08]} 50. Rc5 {[%emt 0:00:01]} Kh6 {[%emt 0:00:05]} 51. Kf3 {[%emt 0:00:02]} Ra3+ {[%emt 0:00:03]} 52. Kg2 {[%emt 0:00:04]} Kg7 {[%emt 0:00:04]} 53. f3 {[%emt 0:00:14]} Ra4 {[%emt 0:00:04]} 54. Kh3 {[%emt 0:00:02]} Kh6 {[%emt 0:00:03]} 55. Rd5 {[%emt 0:00:03]} Ra3 {[%emt 0:00:03]} 56. Kh4 {[%emt 0:00:05]} Rxf3 {[%emt 0:00:06]} 57. Rd6 {[%emt 0:00:01]} Rf1 {[%emt 0:00:05]} 58. Kh3 {[%emt 0:00:01]} Rh1+ {[%emt 0:00:05]} 59. Kg2 {[%emt 0:00:00]} Ra1 {[%emt 0:00:01]} 60. Rxa6 {[%emt 0:00:02]} Kh5 {[%emt 0:00:03]} 61. Kh2 {[%emt 0:00:04]} g5 {[%emt 0:00:08]} 62. fxg5 {[%emt 0:00:02]} Kxg5 {[%emt 0:00:02]} 63. Ra8 {[%emt 0:00:04]} f4 {[%emt 0:00:08]} 64. gxf4+ {[%emt 0:00:01]} Kxf4 {[%emt 0:00:02]} 65. a6 {[%emt 0:00:01]} Ra2+ {[%emt 0:00:17]} 66. Kg1 {[%emt 0:00:11]} Kg3 {[%emt 0:00:02]} 67. Kf1 {[%emt 0:00:01]} Kf3 {[%emt 0:00:01]} 68. Ke1 {[%emt 0:00:01]} Ke3 {[%emt 0:00:02]} 69. Kd1 {[%emt 0:00:01]} Kd3 {[%emt 0:00:02]} 70. Kc1 {[%emt 0:00:02]} Rc2+ {[%emt 0:00:19]} 71. Kb1 {[%emt 0:00:11]} Rc7 {[%emt 0:00:02]} 72. Kb2 {[%emt 0:01:10]} Kc4 {[%emt 0:00:03]} 73. a7 {[%emt 0:00:01]} Kc5 {[%emt 0:00:02]} 74. Kb3 {[%emt 0:00:01]} Kb6 {[%emt 0:00:04]} 1/2-1/2

[Event "29th Paul Keres Memorial 2020"]
[Site "Tallinn"]
[Date "2020.01.11"]
[Round "6.1"]
[White "Kovalenko, Igor"]
[Black "Kuzubov, Yuriy"]
[Result "0-1"]
[ECO "A34"]
[WhiteElo "2640"]
[BlackElo "2644"]
[Annotator "ChessBase"]
[PlyCount "164"]
[EventDate "2020.01.11"]
[EventType "swiss"]
[EventCountry "EST"]
[SourceTitle "playchess.com"]
[Source "ChessBase"]
[SourceQuality "1"]
[TimeControl "900+5"]

1. c4 {[%emt 0:00:00]} c5 {[%emt 0:00:13]} 2. Nc3 {[%emt 0:00:01]} Nf6 {[%emt 0:00:04]} 3. g3 {[%emt 0:00:02]} d5 {[%emt 0:00:51]} 4. cxd5 {[%emt 0:00:01]} Nxd5 {[%emt 0:00:02]} 5. Bg2 {[%emt 0:00:01]} Nxc3 {[%emt 0:00:02]} 6. dxc3 {[%emt 0:00:31]} Qxd1+ {[%emt 0:01:20]} 7. Kxd1 {[%emt 0:00:02]} h5 {[%emt 0:00:47]} 8. Be3 {[%emt 0:00:06]} e6 {[%emt 0:01:13]} 9. Nf3 {[%emt 0:00:12]} Nc6 {[%emt 0:00:07]} 10. Kc2 {[%emt 0:00:21]} Bd7 {[%emt 0:00:11]} 11. Rad1 {[%emt 0:00:05]} Be7 {[%emt 0:00:14]} 12. Ng5 {[%emt 0:00:26]} Rd8 {[%emt 0:00:59]} 13. h4 {[%emt 0:01:55]} Na5 {[%emt 0:00:45]} 14. b3 {[%emt 0:02:13]} b6 {[%emt 0:00:29]} 15. Bf4 {[%emt 0:00:28]} Bc6 {[%emt 0:00:29]} 16. Rxd8+ {[%emt 0:01:52]} Bxd8 {[%emt 0:00:02]} 17. f3 {[%emt 0:00:01]} O-O {[%emt 0:02:24]} 18. Rd1 {[%emt 0:00:10]} Be7 {[%emt 0:00:46]} 19. Bf1 {[%emt 0:01:22]} Rd8 {[%emt 0:00:26]} 20. Rxd8+ {[%emt 0:00:01]} Bxd8 {[%emt 0:00:02]} 21. e4 {[%emt 0:00:02]} Bb7 {[%emt 0:00:16]} 22. a3 {[%emt 0:00:58]} Kf8 {[%emt 0:00:30]} 23. b4 {[%emt 0:00:03]} cxb4 {[%emt 0:00:14]} 24. axb4 {[%emt 0:00:01]} Nc6 {[%emt 0:00:03]} 25. b5 {[%emt 0:00:02]} Ne7 {[%emt 0:00:16]} 26. Bd6 {[%emt 0:00:27]} Ke8 {[%emt 0:00:09]} 27. Be2 {[%emt 0:00:23]} Nc8 {[%emt 0:00:17]} 28. Bb8 {[%emt 0:00:44]} Be7 {[%emt 0:00:26]} 29. Kd2 {[%emt 0:01:29]} Bd6 {[%emt 0:00:25]} 30. Bxd6 {[%emt 0:00:02]} Nxd6 {[%emt 0:00:01]} 31. Ke3 {[%emt 0:00:01]} Ke7 {[%emt 0:00:43]} 32. e5 {[%emt 0:02:46]} Nf5+ {[%emt 0:00:04]} 33. Kf4 {[%emt 0:00:01]} Bd5 {[%emt 0:01:11]} 34. Bd3 {[%emt 0:00:10]} f6 {[%emt 0:01:32]} 35. Ne4 {[%emt 0:00:00]} fxe5+ 36. Kxe5 {[%emt 0:00:05]} Bxe4 {[%emt 0:00:18]} 37. fxe4 {[%emt 0:00:01]} Nd6 {[%emt 0:00:05]} 38. Kf4 {[%emt 0:00:16]} Nb7 {[%emt 0:00:06]} 39. e5 {[%emt 0:00:06]} Nc5 {[%emt 0:00:02]} 40. Be2 {[%emt 0:00:06]} g6 {[%emt 0:00:05]} 41. Bf1 {[%emt 0:00:25]} Kf7 {[%emt 0:00:02]} 42. Bc4 {[%emt 0:00:00]} Kg7 {[%emt 0:00:07]} 43. Kg5 {[%emt 0:00:04]} Ne4+ {[%emt 0:00:02]} 44. Kf4 {[%emt 0:00:02]} Nc5 {[%emt 0:00:02]} 45. Be2 {[%emt 0:00:04]} Nd7 {[%emt 0:00:06]} 46. Bd1 {[%emt 0:00:01]} Kh6 {[%emt 0:00:06]} 47. Bc2 {[%emt 0:00:11]} Nc5 {[%emt 0:00:02]} 48. c4 {[%emt 0:00:12]} Nb7 {[%emt 0:00:06]} 49. Bd1 {[%emt 0:00:15]} Nc5 {[%emt 0:00:02]} 50. Ke3 {[%emt 0:00:01]} g5 {[%emt 0:00:06]} 51. Bc2 {[%emt 0:00:03]} Nd7 {[%emt 0:00:02]} 52. Kd4 {[%emt 0:00:01]} Nc5 {[%emt 0:00:02]} 53. Bd1 {[%emt 0:00:04]} Nd7 {[%emt 0:00:09]} 54. Bf3 {[%emt 0:00:01]} Nc5 {[%emt 0:00:02]} 55. Bc6 {[%emt 0:00:02]} Nb3+ {[%emt 0:00:08]} 56. Ke3 {[%emt 0:00:01]} Nc5 {[%emt 0:00:07]} 57. Be8 {[%emt 0:00:01]} Nb3 {[%emt 0:00:04]} 58. Bf7 {[%emt 0:00:05]} Nc5 {[%emt 0:00:02]} 59. Kd4 {[%emt 0:00:02]} Nb3+ {[%emt 0:00:05]} 60. Ke4 {[%emt 0:00:01]} Nc5+ {[%emt 0:00:02]} 61. Ke3 {[%emt 0:00:01]} gxh4 {[%emt 0:00:09]} 62. gxh4 {[%emt 0:00:01]} Nd7 {[%emt 0:00:13]} 63. Ke4 {[%emt 0:00:19]} Nc5+ {[%emt 0:00:06]} 64. Kf4 {[%emt 0:00:02]} Nd3+ {[%emt 0:00:03]} 65. Ke4 {[%emt 0:00:03]} Nc5+ {[%emt 0:00:05]} 66. Ke3 {[%emt 0:00:03]} Nd7 {[%emt 0:00:03]} 67. Kf4 {[%emt 0:00:02]} Nc5 {[%emt 0:00:02]} 68. Bxe6 {[%emt 0:00:15]} Nxe6+ {[%emt 0:00:01]} 69. Kf5 {[%emt 0:00:00]} Nc5 {[%emt 0:00:17]} 70. Kf6 {[%emt 0:00:01]} Ne4+ {[%emt 0:00:07]} 71. Kf7 {[%emt 0:00:24]} Nd2 {[%emt 0:00:07]} 72. e6 {[%emt 0:00:01]} Nxc4 {[%emt 0:00:02]} 73. e7 {[%emt 0:00:02]} Nd6+ {[%emt 0:00:01]} 74. Ke6 {[%emt 0:00:22]} Ne8 {[%emt 0:00:04]} 75. Kf7 {[%emt 0:00:05]} Nd6+ {[%emt 0:00:03]} 76. Ke6 {[%emt 0:00:04]} Ne8 {[%emt 0:00:02]} 77. Kd7 {[%emt 0:00:02]} Nf6+ {[%emt 0:00:02]} 78. Kd8 {[%emt 0:00:00]} Kg6 {[%emt 0:00:03]} 79. e8=Q+ {[%emt 0:00:02]} Nxe8 {[%emt 0:00:01]} 80. Kxe8 {[%emt 0:00:01]} Kf5 {[%emt 0:00:02]} 81. Kd7 {[%emt 0:00:01]} Ke5 {[%emt 0:00:10]} 82. Kc6 {[%emt 0:00:01]} Kd4 {[%emt 0:00:01]} 0-1

[Event "29th Paul Keres Memorial 2020"]
[Site "Tallinn"]
[Date "2020.01.11"]
[Round "6.2"]
[White "Tiviakov, Sergei"]
[Black "Alekseev, Evgeny"]
[Result "1/2-1/2"]
[ECO "B40"]
[WhiteElo "2608"]
[BlackElo "2623"]
[Annotator "ChessBase"]
[PlyCount "72"]
[EventDate "2020.01.11"]
[EventType "swiss"]
[EventCountry "EST"]
[SourceTitle "playchess.com"]
[Source "ChessBase"]
[SourceQuality "1"]
[TimeControl "900+5"]

1. e4 {[%emt 0:00:00]} c5 {[%emt 0:00:00]} 2. Nf3 {[%emt 0:00:00]} e6 {[%emt 0:00:01]} 3. c3 {[%emt 0:00:01]} d5 {[%emt 0:00:07]} 4. exd5 {[%emt 0:00:03]} Qxd5 {[%emt 0:00:04]} 5. d4 {[%emt 0:00:02]} Nf6 {[%emt 0:00:09]} 6. Na3 {[%emt 0:00:02]} Nc6 {[%emt 0:00:05]} 7. Be3 {[%emt 0:00:33]} cxd4 {[%emt 0:00:17]} 8. Nb5 {[%emt 0:00:02]} Qd8 {[%emt 0:00:11]} 9. Nbxd4 {[%emt 0:00:04]} Nd5 {[%emt 0:00:05]} 10. Bd2 {[%emt 0:00:49]} Nxd4 {[%emt 0:00:28]} 11. Nxd4 {[%emt 0:00:02]} Bc5 {[%emt 0:00:56]} 12. Nb3 {[%emt 0:00:58]} Bd6 {[%emt 0:02:03]} 13. g3 {[%emt 0:00:47]} b6 {[%emt 0:01:23]} 14. c4 {[%emt 0:01:32]} Ne7 {[%emt 0:01:26]} 15. Bg2 {[%emt 0:00:03]} Rb8 {[%emt 0:00:07]} 16. O-O {[%emt 0:01:23]} O-O {[%emt 0:00:05]} 17. Bc3 {[%emt 0:01:32]} Qc7 {[%emt 0:00:40]} 18. Rc1 {[%emt 0:00:44]} Bb7 {[%emt 0:04:31]} 19. Qg4 {[%emt 0:01:09]} Be5 {[%emt 0:00:38]} 20. Bxb7 {[%emt 0:00:09]} Rxb7 {[%emt 0:00:45]} 21. Rfd1 {[%emt 0:00:04]} Ng6 {[%emt 0:00:20]} 22. Qe4 {[%emt 0:00:19]} Rbb8 {[%emt 0:00:17]} 23. Bxe5 {[%emt 0:00:19]} Qxe5 {[%emt 0:00:17]} 24. Qxe5 {[%emt 0:00:07]} Nxe5 {[%emt 0:00:01]} 25. c5 {[%emt 0:00:20]} Rfc8 {[%emt 0:00:20]} 26. cxb6 {[%emt 0:00:19]} axb6 {[%emt 0:00:02]} 27. Nd4 {[%emt 0:00:21]} g5 {[%emt 0:00:06]} 28. a4 {[%emt 0:00:19]} g4 {[%emt 0:00:12]} 29. b4 {[%emt 0:00:38]} Ra8 {[%emt 0:00:21]} 30. Rxc8+ {[%emt 0:01:03]} Rxc8 {[%emt 0:00:01]} 31. a5 {[%emt 0:00:56]} bxa5 {[%emt 0:00:11]} 32. bxa5 {[%emt 0:00:02]} Rd8 {[%emt 0:00:18]} 33. Re1 {[%emt 0:00:14]} Rd5 {[%emt 0:00:55]} 34. a6 {[%emt 0:00:08]} Rxd4 {[%emt 0:00:05]} 35. Rxe5 {[%emt 0:00:01]} Ra4 {[%emt 0:00:01]} 36. a7 {[%emt 0:00:09]} Rxa7 {[%emt 0:00:08]} 1/2-1/2

[Event "29th Paul Keres Memorial 2020"]
[Site "Tallinn"]
[Date "2020.01.11"]
[Round "6.5"]
[White "Meshkovs, Nikita"]
[Black "Shishkov, Andrei"]
[Result "1-0"]
[ECO "A06"]
[WhiteElo "2565"]
[BlackElo "2390"]
[Annotator "ChessBase"]
[PlyCount "90"]
[EventDate "2020.01.11"]
[EventType "swiss"]
[EventCountry "EST"]
[SourceTitle "playchess.com"]
[Source "ChessBase"]
[SourceQuality "1"]
[TimeControl "900+5"]

1. Nf3 {[%emt 0:00:00]} d5 {[%emt 0:00:02]} 2. g3 {[%emt 0:00:00]} c6 {[%emt 0:00:04]} 3. Bg2 {[%emt 0:00:02]} Bg4 {[%emt 0:00:02]} 4. O-O {[%emt 0:00:05]} Nd7 {[%emt 0:00:01]} 5. d4 {[%emt 0:00:06]} e6 {[%emt 0:00:03]} 6. Re1 {[%emt 0:00:21]} f5 {[%emt 0:01:03]} 7. c4 {[%emt 0:00:59]} Bd6 {[%emt 0:00:07]} 8. Qb3 {[%emt 0:00:16]} Rb8 {[%emt 0:03:29]} 9. Ng5 {[%emt 0:01:08]} Qe7 {[%emt 0:02:41]} 10. f3 {[%emt 0:00:24]} h6 {[%emt 0:02:31]} 11. Nxe6 {[%emt 0:00:01]} Qxe6 {[%emt 0:00:12]} 12. cxd5 {[%emt 0:02:17]} Qxd5 {[%emt 0:03:08]} 13. Qxd5 {[%emt 0:00:09]} cxd5 {[%emt 0:00:02]} 14. fxg4 {[%emt 0:00:01]} Ne7 {[%emt 0:00:30]} 15. gxf5 {[%emt 0:00:11]} Nxf5 {[%emt 0:00:14]} 16. e3 {[%emt 0:00:01]} Bb4 {[%emt 0:00:24]} 17. Bd2 {[%emt 0:00:35]} Bxd2 {[%emt 0:00:05]} 18. Nxd2 {[%emt 0:00:01]} Nf6 {[%emt 0:00:10]} 19. e4 {[%emt 0:02:08]} dxe4 {[%emt 0:00:18]} 20. Nxe4 {[%emt 0:00:01]} O-O {[%emt 0:00:08]} 21. Nxf6+ {[%emt 0:00:17]} Rxf6 {[%emt 0:00:01]} 22. Rad1 {[%emt 0:00:11]} b6 {[%emt 0:00:11]} 23. Bd5+ {[%emt 0:00:43]} Kf8 {[%emt 0:00:03]} 24. Be6 {[%emt 0:00:45]} Rd8 {[%emt 0:00:24]} 25. d5 {[%emt 0:00:13]} Rd6 {[%emt 0:00:07]} 26. Re5 {[%emt 0:00:43]} Ne7 {[%emt 0:00:30]} 27. Kg2 {[%emt 0:01:04]} g5 {[%emt 0:00:32]} 28. Rc1 {[%emt 0:00:04]} a5 {[%emt 0:00:05]} 29. Rc7 {[%emt 0:00:13]} Ng6 {[%emt 0:00:08]} 30. Re2 {[%emt 0:03:37]} Ne7 {[%emt 0:00:01]} 31. Rb7 {[%emt 0:00:45]} Nxd5 {[%emt 0:00:04]} 32. Bg4 {[%emt 0:00:00]} Nb4 {[%emt 0:00:08]} 33. Bh5 {[%emt 0:00:08]} Rde6 {[%emt 0:00:01]} 34. Rf7+ {[%emt 0:00:15]} Kg8 {[%emt 0:00:05]} 35. Rxf6 {[%emt 0:00:03]} Rxf6 {[%emt 0:00:02]} 36. a3 {[%emt 0:00:01]} Nd3 {[%emt 0:00:03]} 37. Bf3 {[%emt 0:00:06]} Nc5 {[%emt 0:00:06]} 38. Bd5+ {[%emt 0:00:02]} Kf8 {[%emt 0:00:02]} 39. b4 {[%emt 0:00:08]} axb4 {[%emt 0:00:07]} 40. axb4 {[%emt 0:00:01]} Na4 {[%emt 0:00:04]} 41. Rc2 {[%emt 0:00:04]} b5 {[%emt 0:00:12]} 42. Bc6 {[%emt 0:00:05]} Nb2 {[%emt 0:00:07]} 43. Bxb5 {[%emt 0:00:06]} Nd1 {[%emt 0:00:08]} 44. Rc8+ Kg7 45. Re8 Rf2+ 1-0

[Event "29th Paul Keres Memorial 2020"]
[Site "Tallinn"]
[Date "2020.01.11"]
[Round "7.1"]
[White "Kuzubov, Yuriy"]
[Black "Turov, Maxim"]
[Result "1-0"]
[ECO "E19"]
[WhiteElo "2644"]
[BlackElo "2567"]
[Annotator "ChessBase"]
[PlyCount "137"]
[EventDate "2020.01.11"]
[EventType "swiss"]
[EventCountry "EST"]
[SourceTitle "playchess.com"]
[Source "ChessBase"]
[SourceQuality "1"]
[TimeControl "900+5"]

1. Nf3 {[%emt 0:00:00]} Nf6 {[%emt 0:00:00]} 2. c4 {[%emt 0:00:00]} e6 {[%emt 0:00:00]} 3. g3 {[%emt 0:00:01]} a6 {[%emt 0:00:00]} 4. Bg2 {[%emt 0:00:17]} b5 {[%emt 0:00:00]} 5. b3 {[%emt 0:00:03]} Bb7 {[%emt 0:00:00]} 6. O-O {[%emt 0:00:12]} c5 {[%emt 0:00:10]} 7. e3 {[%emt 0:00:09]} Be7 {[%emt 0:00:25]} 8. Nc3 {[%emt 0:00:09]} Qa5 {[%emt 0:00:18]} 9. Qe2 {[%emt 0:00:43]} b4 {[%emt 0:00:06]} 10. Na4 {[%emt 0:00:08]} O-O {[%emt 0:00:03]} 11. a3 {[%emt 0:01:03]} bxa3 {[%emt 0:00:32]} 12. Bxa3 {[%emt 0:00:29]} d6 {[%emt 0:00:03]} 13. d4 {[%emt 0:00:39]} Nbd7 {[%emt 0:00:35]} 14. Rfd1 {[%emt 0:00:42]} Bc6 {[%emt 0:00:49]} 15. d5 {[%emt 0:02:37]} Bxa4 {[%emt 0:01:52]} 16. Bb2 {[%emt 0:02:32]} e5 {[%emt 0:01:22]} 17. Rxa4 {[%emt 0:00:08]} Qb6 {[%emt 0:00:06]} 18. Ra3 {[%emt 0:00:29]} a5 {[%emt 0:02:27]} 19. Qc2 {[%emt 0:01:47]} Ra6 {[%emt 0:01:09]} 20. Bc3 {[%emt 0:00:06]} Rfa8 {[%emt 0:00:15]} 21. Rda1 {[%emt 0:00:39]} Bd8 {[%emt 0:00:12]} 22. Nd2 {[%emt 0:00:14]} Bc7 {[%emt 0:00:12]} 23. h3 {[%emt 0:00:11]} Qb8 {[%emt 0:00:24]} 24. Bf3 {[%emt 0:00:19]} Nf8 {[%emt 0:00:13]} 25. Kg2 {[%emt 0:00:04]} Ng6 {[%emt 0:00:11]} 26. Be2 {[%emt 0:00:04]} Nf8 {[%emt 0:00:09]} 27. Bd3 {[%emt 0:00:12]} R6a7 {[%emt 0:00:12]} 28. Nb1 {[%emt 0:00:37]} Qe8 {[%emt 0:01:26]} 29. Nd2 {[%emt 0:00:07]} Bb6 {[%emt 0:00:18]} 30. Qd1 {[%emt 0:00:11]} h6 {[%emt 0:00:49]} 31. Bc2 {[%emt 0:00:04]} N8d7 {[%emt 0:00:11]} 32. R3a2 {[%emt 0:00:11]} Bc7 {[%emt 0:00:08]} 33. Nb1 {[%emt 0:00:17]} Nb6 {[%emt 0:00:44]} 34. Rxa5 {[%emt 0:00:42]} Rxa5 {[%emt 0:00:20]} 35. Rxa5 {[%emt 0:00:02]} Rxa5 {[%emt 0:00:06]} 36. Bxa5 {[%emt 0:00:01]} Nbxd5 {[%emt 0:01:00]} 37. Bxc7 {[%emt 0:00:04]} Nxc7 {[%emt 0:00:01]} 38. Qxd6 {[%emt 0:00:02]} Qa8+ {[%emt 0:00:01]} 39. Kg1 {[%emt 0:00:49]} Qa2 {[%emt 0:00:02]} 40. Qd2 {[%emt 0:00:24]} g6 {[%emt 0:00:39]} 41. Nc3 {[%emt 0:00:05]} Qa5 {[%emt 0:00:09]} 42. Qd8+ {[%emt 0:00:39]} Kg7 {[%emt 0:00:03]} 43. Nb5 {[%emt 0:00:12]} Qe1+ {[%emt 0:00:38]} 44. Kg2 {[%emt 0:00:01]} Nxb5 {[%emt 0:00:12]} 45. cxb5 {[%emt 0:00:02]} Qe2 {[%emt 0:00:03]} 46. Qd3 {[%emt 0:00:12]} Qxd3 {[%emt 0:00:02]} 47. Bxd3 {[%emt 0:00:01]} Nd5 {[%emt 0:00:01]} 48. f4 {[%emt 0:00:09]} exf4 {[%emt 0:00:16]} 49. exf4 {[%emt 0:00:04]} f5 {[%emt 0:00:03]} 50. Kf3 {[%emt 0:00:06]} Kf6 {[%emt 0:00:02]} 51. Bc4 {[%emt 0:00:04]} Nb6 {[%emt 0:00:00]} 52. Ke3 {[%emt 0:00:02]} Nc8 {[%emt 0:00:04]} 53. Kd3 {[%emt 0:00:04]} g5 {[%emt 0:00:02]} 54. Kc3 {[%emt 0:00:08]} Ke7 {[%emt 0:00:01]} 55. Bd3 {[%emt 0:00:05]} Nd6 {[%emt 0:00:03]} 56. fxg5 {[%emt 0:00:04]} hxg5 {[%emt 0:00:01]} 57. h4 {[%emt 0:00:05]} f4 {[%emt 0:00:01]} 58. gxf4 {[%emt 0:00:07]} gxh4 {[%emt 0:00:00]} 59. Bf1 {[%emt 0:00:04]} Kf6 {[%emt 0:00:05]} 60. Bh3 {[%emt 0:00:06]} Nxb5+ {[%emt 0:00:06]} 61. Kc4 {[%emt 0:00:01]} Nd4 {[%emt 0:00:02]} 62. b4 {[%emt 0:00:06]} Ne6 {[%emt 0:00:22]} 63. b5 {[%emt 0:00:07]} Nxf4 {[%emt 0:00:15]} 64. b6 {[%emt 0:00:04]} Nxh3 {[%emt 0:00:12]} 65. b7 {[%emt 0:00:02]} Kf5 {[%emt 0:00:05]} 66. b8=Q {[%emt 0:00:03]} Nf4 {[%emt 0:00:03]} 67. Qc8+ {[%emt 0:00:12]} Ke4 {[%emt 0:00:04]} 68. Qg4 {[%emt 0:00:08]} h3 {[%emt 0:00:02]} 69. Qg3 {[%emt 0:00:02]} 1-0

[Event "29th Paul Keres Memorial 2020"]
[Site "Tallinn"]
[Date "2020.01.11"]
[Round "7.2"]
[White "Meshkovs, Nikita"]
[Black "Tiviakov, Sergei"]
[Result "1-0"]
[ECO "A05"]
[WhiteElo "2565"]
[BlackElo "2608"]
[Annotator "ChessBase"]
[PlyCount "69"]
[EventDate "2020.01.11"]
[EventType "swiss"]
[EventCountry "EST"]
[SourceTitle "playchess.com"]
[Source "ChessBase"]
[SourceQuality "1"]
[TimeControl "900+5"]

1. Nf3 {[%emt 0:00:00]} Nf6 {[%emt 0:00:00]} 2. c4 {[%emt 0:00:04]} b6 {[%emt 0:00:00]} 3. g3 {[%emt 0:00:02]} Bb7 {[%emt 0:00:00]} 4. Bg2 {[%emt 0:00:02]} g6 {[%emt 0:00:01]} 5. b3 {[%emt 0:00:03]} Bg7 {[%emt 0:00:02]} 6. Bb2 {[%emt 0:00:01]} O-O {[%emt 0:00:03]} 7. O-O {[%emt 0:00:02]} c5 {[%emt 0:00:20]} 8. Nc3 {[%emt 0:00:25]} d5 {[%emt 0:00:03]} 9. Nxd5 {[%emt 0:00:10]} Nxd5 {[%emt 0:00:12]} 10. Bxg7 {[%emt 0:00:03]} Kxg7 {[%emt 0:00:01]} 11. cxd5 {[%emt 0:00:01]} Bxd5 {[%emt 0:01:02]} 12. d4 {[%emt 0:00:05]} Nd7 {[%emt 0:00:07]} 13. dxc5 {[%emt 0:00:33]} Nxc5 {[%emt 0:00:20]} 14. Qd4+ {[%emt 0:00:02]} f6 {[%emt 0:00:16]} 15. Rfd1 {[%emt 0:00:45]} Bxf3 {[%emt 0:04:06]} 16. Qf4 {[%emt 0:00:11]} Qe8 {[%emt 0:00:47]} 17. Qxf3 {[%emt 0:00:46]} Rd8 {[%emt 0:02:34]} 18. b4 {[%emt 0:00:34]} Rxd1+ {[%emt 0:00:06]} 19. Rxd1 {[%emt 0:00:01]} Qa4 {[%emt 0:00:03]} 20. Rd4 {[%emt 0:02:06]} e5 {[%emt 0:00:02]} 21. Rh4 {[%emt 0:01:09]} Qd1+ {[%emt 0:00:08]} 22. Bf1 {[%emt 0:00:01]} Nd7 {[%emt 0:00:42]} 23. Qb7 {[%emt 0:00:10]} a5 {[%emt 0:00:11]} 24. bxa5 {[%emt 0:00:32]} bxa5 {[%emt 0:00:01]} 25. Rc4 {[%emt 0:00:01]} Rb8 {[%emt 0:00:10]} 26. Qg2 {[%emt 0:00:38]} Rb1 {[%emt 0:00:27]} 27. Rc7 {[%emt 0:00:09]} e4 {[%emt 0:00:25]} 28. g4 {[%emt 0:00:57]} Kf7 {[%emt 0:00:25]} 29. Qh3 {[%emt 0:00:32]} h6 {[%emt 0:00:02]} 30. g5 {[%emt 0:00:23]} f5 {[%emt 0:01:29]} 31. gxh6 {[%emt 0:00:53]} Qxe2 {[%emt 0:00:02]} 32. Qb3+ {[%emt 0:00:56]} Rxb3 {[%emt 0:00:06]} 33. Rxd7+ {[%emt 0:00:03]} Ke6 {[%emt 0:00:57]} 34. Bxe2 {[%emt 0:00:02]} Rb1+ {[%emt 0:00:02]} 35. Rd1 {[%emt 0:00:03]} 1-0